[Event "EYCC Girls U10 2018"]
[Site "Riga"]
[Date "2018.08.22"]
[Round "3"]
[White "Helliesen, Lykke Merlot"]
[Black "Mutlu, Ezgi"]
[Result "1-0"]
[ECO "D35"]
[WhiteElo "1482"]
[BlackElo "1271"]
[Annotator "NA"]
[PlyCount "191"]
[EventDate "2018.08.20"]
[EventType "swiss"]
[EventCountry "LAT"]
[SourceTitle "playchess.com"]
[Source "ChessBase"]
[SourceQuality "1"]
[TimeControl "40/5400+30:1800+30"]

1. d4 {[%emt 0:00:00]} d5 {[%emt 0:00:00]} 2. c4 {[%emt 0:00:00]} e6 {[%emt 0:00:00]} 3. Nc3 {[%emt 0:00:31]} Nf6 {[%emt 0:00:05]} 4. cxd5 {[%emt 0:00:10]} exd5 {[%emt 0:01:06]} 5. Bg5 {[%emt 0:00:45]} Be7 {[%emt 0:00:32]} 6. e3 {[%emt 0:00:26]} O-O {[%emt 0:00:52]} 7. Nf3 {[%emt 0:00:55]} h6 {[%emt 0:03:34]} 8. Bh4 {[%emt 0:02:07]} Re8 {[%emt 0:02:33]} 9. Bd3 {[%emt 0:03:00]} Bg4 {[%emt 0:03:23]} 10. O-O {[%emt 0:02:59]} c6 {[%emt 0:02:11]} 11. h3 {[%emt 0:03:30]} Bh5 {[%emt 0:00:34]} 12. Rc1 {[%emt 0:03:31]} Ne4 {[%emt 0:01:52]} 13. Bxe7 {[%emt 0:03:19]} Qxe7 {[%emt 0:02:40]} 14. Be2 {[%emt 0:01:08]} Nd7 {[%emt 0:03:39]} 15. Nxe4 {[%emt 0:10:43]} Qxe4 {[%emt 0:01:25]} 16. Nd2 {[%emt 0:02:26]} Bxe2 {[%emt 0:00:27]} 17. Qxe2 {[%emt 0:00:17]} Qg6 {[%emt 0:01:33]} 18. Nf3 {[%emt 0:04:18]} Nf6 {[%emt 0:02:45]} 19. Qc2 {[%emt 0:07:04]} Qxc2 {[%emt 0:02:52]} 20. Rxc2 {[%emt 0:00:08]} Ne4 {[%emt 0:01:13]} 21. Nd2 {[%emt 0:02:28]} f5 {[%emt 0:01:05]} 22. Nf3 {[%emt 0:01:47]} Rad8 {[%emt 0:06:42]} 23. Ne5 {[%emt 0:00:27]} Ng5 {[%emt 0:02:40]} 24. b4 {[%emt 0:05:56]} Nf7 {[%emt 0:02:05]} 25. Nd3 {[%emt 0:10:13]} Rd6 {[%emt 0:05:12]} 26. Nc5 {[%emt 0:02:29]} Nd8 {[%emt 0:01:42]} 27. a3 {[%emt 0:03:55]} g5 {[%emt 0:02:10]} 28. g3 {[%emt 0:01:53]} Rf6 {[%emt 0:02:10]} 29. Nd3 {[%emt 0:03:31]} Ne6 {[%emt 0:02:07]} 30. Re1 {[%emt 0:01:28]} Kh7 {[%emt 0:02:38]} 31. Rce2 {[%emt 0:05:09]} Rg8 {[%emt 0:04:10]} 32. Kh2 {[%emt 0:02:57]} h5 {[%emt 0:02:30]} 33. f4 {[%emt 0:03:37]} g4 {[%emt 0:04:32]} 34. h4 {[%emt 0:00:27]} Rf7 {[%emt 0:00:50]} 35. Ne5 {[%emt 0:00:49]} Re7 {[%emt 0:01:08]} 36. Rc2 {[%emt 0:00:45]} Nd8 {[%emt 0:01:21]} 37. Rf1 {[%emt 0:03:23]} Rge8 {[%emt 0:01:22]} 38. Rff2 {[%emt 0:01:51]} Kg7 {[%emt 0:01:26]} 39. Rc5 {[%emt 0:01:11]} Nf7 {[%emt 0:01:40]} 40. b5 {[%emt 0:00:00]} cxb5 {[%emt 0:00:00]} 41. Rxb5 {[%emt 0:06:26]} Rd8 {[%emt 0:05:18]} 42. Rfb2 {[%emt 0:01:29]} Nxe5 {[%emt 0:02:57]} 43. fxe5 {[%emt 0:02:31]} b6 {[%emt 0:01:37]} 44. Rc2 {[%emt 0:01:39]} Kf7 {[%emt 0:05:19]} 45. a4 {[%emt 0:02:49]} Re6 {[%emt 0:03:12]} 46. a5 {[%emt 0:01:04]} bxa5 {[%emt 0:02:33]} 47. Rxa5 {[%emt 0:00:11]} Re7 {[%emt 0:00:39]} 48. Rcc5 {[%emt 0:00:57]} Red7 {[%emt 0:01:06]} 49. Rc6 {[%emt 0:00:15]} Rb7 {[%emt 0:02:21]} 50. Rf6+ {[%emt 0:00:46]} Ke7 {[%emt 0:00:59]} 51. Rxf5 {[%emt 0:00:26]} Rc8 {[%emt 0:04:07]} 52. Ra2 {[%emt 0:02:03]} Rc1 {[%emt 0:01:44]} 53. Rxh5 {[%emt 0:07:51]} Rbb1 {[%emt 0:02:29]} 54. Rxa7+ {[%emt 0:00:37]} Ke6 {[%emt 0:00:37]} 55. Ra6+ {[%emt 0:00:22]} Kf7 {[%emt 0:00:20]} 56. e6+ {[%emt 0:00:30]} Ke8 {[%emt 0:08:26]} 57. Rh8+ {[%emt 0:00:41]} Ke7 {[%emt 0:00:15]} 58. Rh7+ {[%emt 0:00:16]} Kf6 {[%emt 0:02:24]} 59. e7+ {[%emt 0:00:23]} Kf5 {[%emt 0:00:50]} 60. Rf7+ {[%emt 0:00:30]} Ke4 {[%emt 0:01:27]} 61. e8=Q+ {[%emt 0:00:13]} Kd3 {[%emt 0:01:23]} 62. Ra3+ {[%emt 0:00:57]} Ke2 {[%emt 0:00:58]} 63. Rf2+ {[%emt 0:08:27]} Kxf2 {[%emt 0:00:14]} 64. Ra2+ {[%emt 0:00:20]} Kf3 {[%emt 0:02:13]} 65. Qf7+ {[%emt 0:00:33]} Ke4 {[%emt 0:03:48]} 66. Qe6+ {[%emt 0:02:30]} Kd3 {[%emt 0:02:00]} 67. Qf5+ {[%emt 0:00:31]} Kc3 {[%emt 0:00:52]} 68. Qc8+ {[%emt 0:00:48]} Kb3 {[%emt 0:00:44]} 69. Qa6 {[%emt 0:02:56]} Kc3 {[%emt 0:03:01]} 70. Qa3+ {[%emt 0:00:28]} Kc4 {[%emt 0:00:36]} 71. Qa4+ {[%emt 0:00:48]} Kd3 {[%emt 0:01:29]} 72. Ra3+ {[%emt 0:00:59]} Ke4 {[%emt 0:01:10]} 73. Qe8+ {[%emt 0:00:22]} Kf3 {[%emt 0:00:16]} 74. Qf7+ {[%emt 0:00:27]} Ke2 {[%emt 0:00:22]} 75. Ra2+ {[%emt 0:00:26]} Kd3 {[%emt 0:00:19]} 76. Qg6+ {[%emt 0:00:49]} Kc3 {[%emt 0:00:40]} 77. Qc6+ {[%emt 0:00:38]} Kd3 {[%emt 0:00:45]} 78. Qg6+ {[%emt 0:01:34]} Kc3 {[%emt 0:00:20]} 79. Qxg4 {[%emt 0:01:05]} Rh1+ {[%emt 0:00:42]} 80. Kg2 {[%emt 0:00:12]} Rhg1+ {[%emt 0:00:12]} 81. Kf3 {[%emt 0:00:22]} Rb8 {[%emt 0:02:44]} 82. Qg7 {[%emt 0:00:56]} Rbb1 {[%emt 0:01:19]} 83. Qc7+ {[%emt 0:00:42]} Kb3 {[%emt 0:00:32]} 84. Qc2+ {[%emt 0:00:17]} Kb4 {[%emt 0:00:16]} 85. Rb2+ {[%emt 0:00:15]} Rxb2 {[%emt 0:00:19]} 86. Qxb2+ {[%emt 0:00:09]} Ka5 {[%emt 0:00:09]} 87. h5 {[%emt 0:00:18]} Ka6 {[%emt 0:00:15]} 88. h6 {[%emt 0:00:33]} Ka7 {[%emt 0:00:59]} 89. h7 {[%emt 0:00:22]} Rf1+ {[%emt 0:00:28]} 90. Kg2 {[%emt 0:00:21]} Rf8 {[%emt 0:00:20]} 91. Qa3+ {[%emt 0:00:09]} Kb7 {[%emt 0:00:24]} 92. Qxf8 {[%emt 0:00:12]} Ka7 {[%emt 0:00:15]} 93. Qb4 {[%emt 0:00:10]} Ka6 {[%emt 0:00:14]} 94. h8=Q {[%emt 0:00:14]} Ka7 {[%emt 0:00:08]} 95. Qhb8+ {[%emt 0:00:16]} Ka6 {[%emt 0:00:15]} 96. Q8b6# {[%emt 0:00:05]} 1-0

[Event "EYCC Girls U10 2018"]
[Site "Riga"]
[Date "2018.08.23"]
[Round "4"]
[White "Helliesen, Lykke Merlot"]
[Black "Shvedova, Alexandra"]
[Result "0-1"]
[ECO "D31"]
[WhiteElo "1482"]
[BlackElo "1758"]
[Annotator "NA RC"]
[PlyCount "80"]
[EventDate "2018.08.20"]
[EventType "swiss"]
[EventCountry "LAT"]
[SourceTitle "playchess.com"]
[Source "ChessBase"]
[SourceQuality "1"]
[TimeControl "40/5400+30:1800+30"]

1. d4 {[%emt 0:00:00]} d5 {[%emt 0:00:00]} 2. c4 {[%emt 0:00:00]} e6 {[%emt 0:00:00]} 3. Nc3 {[%emt 0:00:00]} Be7 {[%emt 0:00:00]} 4. cxd5 {[%emt 0:00:20]} exd5 {[%emt 0:00:00]} 5. Bf4 {[%emt 0:00:31]} c6 {[%emt 0:01:02]} 6. e3 {[%emt 0:00:25]} Nf6 {[%emt 0:00:07]} 7. Bd3 {[%emt 0:00:59]} Bg4 {[%emt 0:00:25]} 8. Nf3 {[%emt 0:02:13]} Bh5 {[%emt 0:00:51]} 9. O-O {[%emt 0:04:41]} O-O {[%emt 0:00:17]} 10. Re1 {[%emt 0:02:54]} Nbd7 {[%emt 0:03:15]} 11. h3 {[%emt 0:09:27]} Re8 {[%emt 0:01:38]} 12. a3 {[%emt 0:06:54]} Nf8 {[%emt 0:02:14]} 13. Rc1 {[%emt 0:07:24]} Ne6 {[%emt 0:02:06]} 14. Bh2 {[%emt 0:01:43]} Ng5 {[%emt 0:03:08]} 15. Be2 {[%emt 0:03:07]} Nxf3+ {[%emt 0:01:04]} 16. Bxf3 {[%emt 0:00:58]} Bg6 {[%emt 0:00:16]} 17. Qb3 {[%emt 0:03:18]} Qb6 {[%emt 0:05:26]} 18. Qxb6 {[%emt 0:04:06]} axb6 {[%emt 0:00:07]} 19. Ne2 b5 {[%emt 0:00:30]} 20. Red1 h6 {[%emt 0:00:30]} 21. Rc3 Nd7 {[%emt 0:00:30]} 22. Nc1 Nb6 {[%emt 0:00:30]} 23. Be2 Na4 {[%emt 0:00:30]} 24. Na2 Nxc3 {[%emt 0:00:30]} 25. Nxc3 b4 {[%emt 0:00:30]} 26. axb4 Bxb4 {[%emt 0:00:30]} 27. Bf4 Bxc3 {[%emt 0:00:30]} 28. bxc3 Ra2 {[%emt 0:00:30]} 29. Bg4 Rea8 {[%emt 0:00:30]} 30. Kh2 Rxf2 {[%emt 0:00:30]} 31. Rc1 Raa2 {[%emt 0:00:30]} 32. Bf3 Rxf3 {[%emt 0:00:30]} 33. Rg1 Rff2 {[%emt 0:00:30]} 34. Bg3 Rfe2 {[%emt 0:00:30]} 35. Bf4 Be4 {[%emt 0:00:30]} 36. Kg3 Rxg2+ {[%emt 0:00:30]} 37. Rxg2 Rxg2+ {[%emt 0:00:30]} 38. Kh4 g5+ {[%emt 0:00:30]} 39. Bxg5 hxg5+ {[%emt 0:00:30]} 40. Kh5 Kg7 {[%emt 0:00:30]} 0-1

[Event "EYCC Girls U10 2018"]
[Site "Riga"]
[Date "2018.08.23"]
[Round "4"]
[White "Mutina, Sofia"]
[Black "Zhapova, Yana"]
[Result "1/2-1/2"]
[ECO "D00"]
[WhiteElo "1319"]
[BlackElo "1733"]
[Annotator "NA RC"]
[PlyCount "85"]
[EventDate "2018.08.20"]
[EventType "swiss"]
[EventCountry "LAT"]
[SourceTitle "playchess.com"]
[Source "ChessBase"]
[SourceQuality "1"]
[TimeControl "40/5400+30:1800+30"]

1. d4 {[%emt 0:00:00]} d5 {[%emt 0:00:00]} 2. Bf4 {[%emt 0:00:05]} c5 {[%emt 0:00:34]} 3. e3 {[%emt 0:01:03]} cxd4 {[%emt 0:01:58]} 4. exd4 {[%emt 0:00:17]} Nc6 {[%emt 0:00:07]} 5. c3 {[%emt 0:00:22]} Bf5 {[%emt 0:02:26]} 6. Nd2 {[%emt 0:02:57]} e6 {[%emt 0:02:00]} 7. Ngf3 {[%emt 0:01:23]} Nf6 {[%emt 0:04:44]} 8. Bb5 {[%emt 0:04:12]} a6 {[%emt 0:12:22]} 9. Bxc6+ {[%emt 0:01:13]} bxc6 {[%emt 0:00:09]} 10. Ne5 {[%emt 0:00:37]} c5 {[%emt 0:00:40]} 11. Qa4+ {[%emt 0:01:05]} Nd7 {[%emt 0:01:25]} 12. Ndf3 {[%emt 0:01:06]} f6 {[%emt 0:02:47]} 13. Nxd7 {[%emt 0:02:35]} Qxd7 {[%emt 0:00:58]} 14. Qxd7+ {[%emt 0:07:32]} Kxd7 {[%emt 0:00:10]} 15. O-O {[%emt 0:01:21]} g5 {[%emt 0:10:38]} 16. Be3 {[%emt 0:02:47]} c4 {[%emt 0:00:28]} 17. b4 {[%emt 0:01:33]} Bd6 {[%emt 0:00:29]} 18. a4 {[%emt 0:07:57]} h6 {[%emt 0:03:26]} 19. Rfd1 {[%emt 0:11:25]} Kc6 {[%emt 0:04:31]} 20. Rd2 {[%emt 0:02:50]} Bc7 {[%emt 0:01:08]} 21. g3 {[%emt 0:10:15]} Rhe8 {[%emt 0:01:51]} 22. h4 {[%emt 0:00:39]} Be4 {[%emt 0:01:23]} 23. Ne1 {[%emt 0:00:35]} gxh4 {[%emt 0:01:29]} 24. gxh4 {[%emt 0:00:05]} h5 {[%emt 0:00:17]} 25. f3 {[%emt 0:00:37]} Rg8+ {[%emt 0:00:20]} 26. Kf1 {[%emt 0:01:02]} Bf5 {[%emt 0:00:09]} 27. Ke2 {[%emt 0:07:54]} Rae8 {[%emt 0:13:47]} 28. Rb2 {[%emt 0:03:55]} Bb6 {[%emt 0:07:21]} 29. Kd2 {[%emt 0:08:40]} Kb7 {[%emt 0:14:38]} 30. Rd1 {[%emt 0:01:30]} Bc7 {[%emt 0:01:30]} 31. Kc1 {[%emt 0:00:14]} Bg3 {[%emt 0:00:44]} 32. Ng2 {[%emt 0:02:40]} Kc6 {[%emt 0:03:36]} 33. Bf4 {[%emt 0:03:51]} Bxf4+ {[%emt 0:00:09]} 34. Nxf4 {[%emt 0:00:07]} Rg3 {[%emt 0:00:03]} 35. Rf2 {[%emt 0:00:37]} Bg6 {[%emt 0:00:23]} 36. Rh1 {[%emt 0:01:35]} Bf7 {[%emt 0:00:08]} 37. Ne2 {[%emt 0:00:07]} Rg7 {[%emt 0:00:35]} 38. Kd2 {[%emt 0:02:29]} Reg8 {[%emt 0:00:24]} 39. Rhh2 {[%emt 0:00:08]} a5 {[%emt 0:01:25]} 40. b5+ {[%emt 0:00:00]} Kb6 {[%emt 0:00:00]} 41. Ke3 {[%emt 0:00:28]} Bg6 {[%emt 0:02:03]} 42. Nf4 {[%emt 0:00:13]} Bf7 {[%emt 0:00:05]} 43. Ne2 {[%emt 0:00:06]} 1/2-1/2

[Event "EYCC Girls U10 2018"]
[Site "Riga"]
[Date "2018.08.23"]
[Round "4"]
[White "Guid, Taja"]
[Black "Svergina, Sofya"]
[Result "0-1"]
[ECO "A15"]
[WhiteElo "1259"]
[BlackElo "1657"]
[Annotator "NA RC"]
[PlyCount "58"]
[EventDate "2018.08.20"]
[EventType "swiss"]
[EventCountry "LAT"]
[SourceTitle "playchess.com"]
[Source "ChessBase"]
[SourceQuality "1"]
[TimeControl "40/5400+30:1800+30"]

1. c4 {[%emt 0:00:00]} Nf6 {[%emt 0:00:00]} 2. g3 {[%emt 0:00:00]} e6 {[%emt 0:00:00]} 3. Bg2 {[%emt 0:00:07]} d5 {[%emt 0:00:00]} 4. Nf3 {[%emt 0:00:43]} Be7 {[%emt 0:00:00]} 5. b3 {[%emt 0:00:46]} b6 {[%emt 0:00:35]} 6. Bb2 {[%emt 0:01:44]} Bb7 {[%emt 0:00:11]} 7. O-O {[%emt 0:00:48]} O-O {[%emt 0:00:07]} 8. e3 {[%emt 0:01:21]} c5 {[%emt 0:00:56]} 9. Nc3 {[%emt 0:01:39]} Nc6 {[%emt 0:00:47]} 10. d4 {[%emt 0:06:46]} Rc8 {[%emt 0:02:39]} 11. Rc1 {[%emt 0:06:14]} cxd4 {[%emt 0:02:59]} 12. exd4 {[%emt 0:00:58]} dxc4 {[%emt 0:01:15]} 13. bxc4 {[%emt 0:01:09]} Na5 {[%emt 0:07:13]} 14. Ne5 {[%emt 0:10:36]} Bxg2 {[%emt 0:00:26]} 15. Kxg2 {[%emt 0:00:28]} Nxc4 {[%emt 0:01:27]} 16. Nxc4 {[%emt 0:00:56]} Rxc4 {[%emt 0:00:09]} 17. Ne2 {[%emt 0:07:12]} Rxc1 {[%emt 0:00:16]} 18. Nxc1 {[%emt 0:01:39]} Qd5+ {[%emt 0:01:25]} 19. Kg1 {[%emt 0:02:13]} Rc8 {[%emt 0:00:47]} 20. Qa4 {[%emt 0:03:58]} Qa5 {[%emt 0:01:42]} 21. Qxa5 {[%emt 0:09:12]} bxa5 {[%emt 0:00:10]} 22. Nb3 {[%emt 0:02:18]} a4 {[%emt 0:00:42]} 23. Rc1 {[%emt 0:01:29]} Rb8 {[%emt 0:01:31]} 24. Rc7 {[%emt 0:04:19]} Nd5 {[%emt 0:02:56]} 25. Rxa7 {[%emt 0:02:04]} axb3 {[%emt 0:00:07]} 26. axb3 {[%emt 0:00:25]} g6 {[%emt 0:00:06]} 27. Bc1 {[%emt 0:02:10]} Kg7 {[%emt 0:00:23]} 28. Bf4 {[%emt 0:01:14]} Nxf4 {[%emt 0:00:41]} 29. gxf4 {[%emt 0:00:18]} Bf6 {[%emt 0:00:11]} 0-1

[Event "EYCC Girls U10 2018"]
[Site "Riga"]
[Date "2018.08.24"]
[Round "5"]
[White "Shvedova, Alexandra"]
[Black "Svergina, Sofya"]
[Result "1-0"]
[ECO "C07"]
[WhiteElo "1758"]
[BlackElo "1657"]
[Annotator "NA"]
[PlyCount "99"]
[EventDate "2018.08.20"]
[EventType "swiss"]
[EventCountry "LAT"]
[SourceTitle "playchess.com"]
[Source "ChessBase"]
[SourceQuality "1"]
[TimeControl "40/5400+30:1800+30"]

1. e4 {[%emt 0:00:00]} e6 {[%emt 0:00:00]} 2. d4 {[%emt 0:00:00]} d5 {[%emt 0:00:00]} 3. Nd2 {[%emt 0:00:00]} c5 {[%emt 0:00:00]} 4. exd5 {[%emt 0:00:11]} Qxd5 {[%emt 0:00:02]} 5. Ngf3 {[%emt 0:00:08]} cxd4 {[%emt 0:00:12]} 6. Bc4 {[%emt 0:00:08]} Qd6 {[%emt 0:00:38]} 7. O-O {[%emt 0:00:10]} Nf6 {[%emt 0:00:24]} 8. Nb3 {[%emt 0:00:10]} Nc6 {[%emt 0:00:12]} 9. Nbxd4 {[%emt 0:00:31]} Nxd4 {[%emt 0:00:08]} 10. Nxd4 {[%emt 0:00:04]} a6 {[%emt 0:00:17]} 11. a4 {[%emt 0:02:04]} Qc7 {[%emt 0:00:20]} 12. Qe2 {[%emt 0:00:43]} Bd6 {[%emt 0:00:41]} 13. Bg5 {[%emt 0:02:36]} O-O {[%emt 0:03:08]} 14. Kh1 {[%emt 0:11:51]} Bd7 {[%emt 0:07:24]} 15. Bxf6 {[%emt 0:08:04]} gxf6 {[%emt 0:00:07]} 16. Bd3 {[%emt 0:01:00]} f5 {[%emt 0:00:43]} 17. Rfe1 {[%emt 0:06:01]} Qd8 {[%emt 0:12:01]} 18. Qh5 {[%emt 0:05:52]} Qf6 {[%emt 0:01:13]} 19. c3 {[%emt 0:06:26]} Qg6 {[%emt 0:00:37]} 20. Qf3 {[%emt 0:02:56]} Rab8 {[%emt 0:01:17]} 21. Bc2 {[%emt 0:05:44]} Qg4 {[%emt 0:01:21]} 22. Rad1 {[%emt 0:02:55]} Bc5 {[%emt 0:08:58]} 23. b4 {[%emt 0:09:55]} Ba7 {[%emt 0:07:31]} 24. Nxf5 {[%emt 0:01:57]} Qxf3 {[%emt 0:00:17]} 25. gxf3 {[%emt 0:00:17]} Bc6 {[%emt 0:06:19]} 26. Ne7+ {[%emt 0:00:07]} Kg7 {[%emt 0:00:05]} 27. Nxc6 {[%emt 0:00:08]} bxc6 {[%emt 0:00:04]} 28. Kg2 {[%emt 0:01:30]} Rbd8 {[%emt 0:00:17]} 29. Bd3 {[%emt 0:05:39]} Ra8 {[%emt 0:00:40]} 30. Be4 {[%emt 0:01:17]} Rac8 {[%emt 0:00:58]} 31. Rd6 {[%emt 0:03:50]} c5 {[%emt 0:03:21]} 32. Rxa6 {[%emt 0:01:23]} Bb8 {[%emt 0:00:13]} 33. b5 {[%emt 0:01:39]} Be5 {[%emt 0:00:34]} 34. Rc1 {[%emt 0:01:14]} Rfd8 {[%emt 0:01:19]} 35. a5 {[%emt 0:01:36]} Rd6 {[%emt 0:00:27]} 36. Rxd6 {[%emt 0:00:48]} Bxd6 {[%emt 0:00:06]} 37. b6 {[%emt 0:00:02]} Rb8 {[%emt 0:00:13]} 38. b7 {[%emt 0:00:11]} Bc7 {[%emt 0:00:08]} 39. Ra1 {[%emt 0:00:31]} f5 {[%emt 0:00:12]} 40. Bc6 {[%emt 0:00:00]} Rg8 {[%emt 0:00:00]} 41. a6 {[%emt 0:01:00]} Kf6+ {[%emt 0:00:58]} 42. Kh1 {[%emt 0:00:10]} Bb6 {[%emt 0:00:22]} 43. a7 {[%emt 0:00:05]} Bxa7 {[%emt 0:00:07]} 44. Rxa7 {[%emt 0:00:05]} Rb8 {[%emt 0:01:05]} 45. Ra8 {[%emt 0:00:08]} Rxa8 {[%emt 0:00:04]} 46. bxa8=Q {[%emt 0:00:06]} Ke5 {[%emt 0:00:10]} 47. Qb8+ {[%emt 0:00:13]} Kf6 {[%emt 0:00:07]} 48. f4 {[%emt 0:00:04]} Kg7 {[%emt 0:00:13]} 49. Qe8 {[%emt 0:00:19]} Kf6 {[%emt 0:00:16]} 50. Qf8+ {[%emt 0:00:08]} 1-0

[Event "EYCC Girls U10 2018"]
[Site "Riga"]
[Date "2018.08.24"]
[Round "5"]
[White "Zhapova, Yana"]
[Black "Guid, Taja"]
[Result "1-0"]
[ECO "B33"]
[WhiteElo "1733"]
[BlackElo "1259"]
[Annotator "NA"]
[PlyCount "71"]
[EventDate "2018.08.20"]
[EventType "swiss"]
[EventCountry "LAT"]
[SourceTitle "playchess.com"]
[Source "ChessBase"]
[SourceQuality "1"]
[TimeControl "40/5400+30:1800+30"]

1. e4 {[%emt 0:00:00]} c5 {[%emt 0:00:00]} 2. Nf3 {[%emt 0:00:00]} Nc6 {[%emt 0:00:00]} 3. d4 {[%emt 0:00:23]} cxd4 {[%emt 0:00:16]} 4. Nxd4 {[%emt 0:00:10]} Nf6 {[%emt 0:00:20]} 5. Nc3 {[%emt 0:00:17]} e5 {[%emt 0:00:27]} 6. Ndb5 {[%emt 0:00:24]} d6 {[%emt 0:00:25]} 7. Bg5 {[%emt 0:00:19]} a6 {[%emt 0:01:38]} 8. Na3 {[%emt 0:02:22]} b5 {[%emt 0:00:44]} 9. Nd5 {[%emt 0:00:17]} Be7 {[%emt 0:01:07]} 10. Bxf6 {[%emt 0:00:49]} Bxf6 {[%emt 0:01:13]} 11. c4 {[%emt 0:00:27]} bxc4 {[%emt 0:29:12]} 12. Nxc4 {[%emt 0:09:57]} Nd4 {[%emt 0:04:52]} 13. Bd3 {[%emt 0:23:53]} O-O {[%emt 0:12:41]} 14. O-O {[%emt 0:00:20]} Bg5 {[%emt 0:04:24]} 15. f4 {[%emt 0:10:00]} Bf6 {[%emt 0:04:26]} 16. Qh5 {[%emt 0:09:04]} Re8 {[%emt 0:01:58]} 17. fxe5 {[%emt 0:04:25]} dxe5 {[%emt 0:00:38]} 18. Nce3 {[%emt 0:00:11]} Qd6 {[%emt 0:06:30]} 19. Bc4 {[%emt 0:00:50]} Re6 {[%emt 0:02:43]} 20. Nxf6+ {[%emt 0:01:26]} Rxf6 {[%emt 0:00:13]} 21. Bxf7+ {[%emt 0:00:17]} Kh8 {[%emt 0:02:49]} 22. Rxf6 {[%emt 0:00:14]} Qxf6 {[%emt 0:01:39]} 23. Rf1 {[%emt 0:00:17]} Qe7 {[%emt 0:01:17]} 24. Bg6 {[%emt 0:07:26]} h6 {[%emt 0:00:30]} 25. Qxe5 Ne6 {[%emt 0:02:26]} 26. Nf5 {[%emt 0:02:57]} Qc5+ {[%emt 0:02:51]} 27. Qxc5 {[%emt 0:00:40]} Nxc5 {[%emt 0:00:14]} 28. Nd6 {[%emt 0:02:30]} Be6 {[%emt 0:00:56]} 29. Ne8 {[%emt 0:01:34]} Bg8 {[%emt 0:03:12]} 30. e5 {[%emt 0:01:37]} Ne6 {[%emt 0:00:51]} 31. Nd6 {[%emt 0:01:28]} Ng5 {[%emt 0:04:06]} 32. h4 {[%emt 0:01:15]} Nh7 {[%emt 0:00:55]} 33. Nf7+ {[%emt 0:00:27]} Bxf7 {[%emt 0:00:20]} 34. Bxf7 {[%emt 0:00:24]} Rb8 {[%emt 0:00:56]} 35. b3 {[%emt 0:00:14]} g5 {[%emt 0:00:31]} 36. e6 {[%emt 0:00:21]} 1-0

[Event "EYCC Girls U10 2018"]
[Site "Riga"]
[Date "2018.08.24"]
[Round "5"]
[White "Shukhman, Anna"]
[Black "Huang, Wendy"]
[Result "1/2-1/2"]
[ECO "B90"]
[WhiteElo "1577"]
[BlackElo "1648"]
[Annotator "NA"]
[PlyCount "85"]
[EventDate "2018.08.20"]
[EventType "swiss"]
[EventCountry "LAT"]
[SourceTitle "playchess.com"]
[Source "ChessBase"]
[SourceQuality "1"]
[TimeControl "40/5400+30:1800+30"]

1. e4 {[%emt 0:00:00]} c5 {[%emt 0:00:00]} 2. Nf3 {[%emt 0:00:00]} d6 {[%emt 0:00:00]} 3. d4 {[%emt 0:00:00]} cxd4 {[%emt 0:00:00]} 4. Nxd4 {[%emt 0:00:00]} Nf6 {[%emt 0:00:05]} 5. Nc3 {[%emt 0:00:00]} a6 {[%emt 0:00:05]} 6. h3 {[%emt 0:00:00]} e5 {[%emt 0:00:07]} 7. Nb3 {[%emt 0:00:00]} Be6 {[%emt 0:00:33]} 8. f4 {[%emt 0:00:01]} Be7 {[%emt 0:07:33]} 9. f5 {[%emt 0:02:26]} Bc8 {[%emt 0:01:27]} 10. g4 {[%emt 0:05:07]} h6 {[%emt 0:01:08]} 11. Be3 {[%emt 0:00:41]} Nbd7 {[%emt 0:02:39]} 12. Qf3 {[%emt 0:05:39]} b5 {[%emt 0:03:14]} 13. O-O-O {[%emt 0:00:44]} Bb7 {[%emt 0:05:57]} 14. Bd3 {[%emt 0:09:36]} b4 {[%emt 0:03:00]} 15. Ne2 {[%emt 0:02:34]} d5 {[%emt 0:06:04]} 16. Ng3 {[%emt 0:02:07]} d4 {[%emt 0:04:32]} 17. Bf2 {[%emt 0:01:13]} a5 {[%emt 0:02:51]} 18. Kd2 {[%emt 0:08:18]} a4 {[%emt 0:07:38]} 19. Nc1 {[%emt 0:00:14]} Nh7 {[%emt 0:07:02]} 20. Ke2 {[%emt 0:04:53]} O-O {[%emt 0:05:38]} 21. Kf1 {[%emt 0:06:42]} Nc5 {[%emt 0:02:31]} 22. Kg2 {[%emt 0:05:38]} Rc8 {[%emt 0:02:36]} 23. Qe2 {[%emt 0:05:52]} a3 {[%emt 0:03:56]} 24. bxa3 {[%emt 0:03:08]} bxa3 {[%emt 0:00:15]} 25. Nb3 {[%emt 0:00:22]} Na4 {[%emt 0:01:49]} 26. Be1 {[%emt 0:01:56]} Nc3 {[%emt 0:01:42]} 27. Bxc3 {[%emt 0:00:07]} Rxc3 {[%emt 0:00:09]} 28. Rb1 {[%emt 0:02:00]} Qc7 {[%emt 0:01:39]} 29. Qd1 {[%emt 0:04:51]} Ra8 {[%emt 0:01:52]} 30. Qe2 {[%emt 0:08:35]} Nf8 {[%emt 0:02:57]} 31. Nd2 {[%emt 0:05:01]} Nd7 {[%emt 0:02:17]} 32. Qf3 {[%emt 0:04:32]} Nc5 {[%emt 0:03:20]} 33. Ne2 {[%emt 0:00:41]} Nxd3 {[%emt 0:00:42]} 34. cxd3 {[%emt 0:01:09]} Rc2 {[%emt 0:01:37]} 35. Rhc1 {[%emt 0:00:20]} Ba6 {[%emt 0:01:56]} 36. Nc4 {[%emt 0:02:06]} Rxc1 {[%emt 0:01:09]} 37. Rxc1 {[%emt 0:00:03]} Bxc4 {[%emt 0:02:18]} 38. Rxc4 {[%emt 0:00:31]} Qb7 {[%emt 0:00:51]} 39. Nc1 {[%emt 0:00:25]} Qb2+ {[%emt 0:01:46]} 40. Qf2 {[%emt 0:00:00]} Rb8 {[%emt 0:00:00]} 41. Nb3 {[%emt 0:05:09]} Bh4 {[%emt 0:07:31]} 42. Qc2 {[%emt 0:00:07]} Bg5 {[%emt 0:01:02]} 43. Kf1 {[%emt 0:10:35]} 1/2-1/2